Cogmind - Beta 17 @@@ ROGUE MODE // 2026.07.01 @ 19:24:42 Player: DZKane Result: Destroyed by P-80 Master with Gamma Rifle Performance ------------- Evolutions (9) 4500 Regions Visited (21) 4200 Robots Destroyed (288) 1440 Value Destroyed (12662) 12662 Prototype IDs (45) 900 Alien Tech Used (0) 0 Bonus (6074) 6074 TOTAL SCORE: 29776 Bonus ------- High Alert Combat Kills 855 Follower Combat Kills 1791 Network Hubs Disabled 200 Met Data Miner 300 Built Enhanced Grunts 300 A7 Reached Mainframe 300 Met R17 at Cetus 500 Met R17 at Research 2000 Friendly Fire -172 Cogmind --------- Core Integrity 0/1600 Matter 243/300 Energy 90/100 System Corruption 16% Temperature Cool (0) Movement Core (50) Location -1/Access Parts ------- > --- POWER (3) -------- (None) > --- PROPULSION (6) --- (None) > --- UTILITY (12) ----- Enhanced Optical Array Advanced Terrain Scan Processor Graphene Brace > --- WEAPON (4) ------- (None) > --- INVENTORY (5) ---- Quantum Capacitor Improved Point Defense System Advanced Hacking Suite Matter Neutralizer Peak State ------------ > --- POWER ------------ Quantum Reactor Light Quantum Reactor Light Quantum Reactor > --- PROPULSION ------- Improved Heavy Treads Improved Heavy Treads Centrium Heavy Treads > --- UTILITY ---------- Advanced Cooling System High-capacity Storage Unit Enhanced Optical Array Advanced Terrain Scan Processor Advanced Targeting Computer Advanced Target Analyzer Core Analyzer Improved Weapon Cycler Advanced Phase Shifter Advanced Phase Shifter Centrium Medium Armor Plating Graphene Brace > --- WEAPON ----------- Advanced KE Penetrator Advanced KE Penetrator Centrium Greatsword > --- INVENTORY -------- Improved Heavy Treads Energy Well Advanced Matter Compressor Advanced Terrain Scanner Improved Particle Charger Quantum Capacitor Centrium Medium Armor Plating Improved Thermal Shield Advanced Shield Generator Improved Point Defense System High-powered Tractor Beam Advanced Variable Charge Gun Advanced Variable Charge Gun Advanced Variable Charge Gun Compact HERF Cannon Compact Linear Accelerator Improved Proton Missile Launcher Multitool [Rating: 188] Favorites ----------- Power Quantum Reactor Engine Heavy Ion Engine Power Core Hybrid Fission Core Reactor Quantum Reactor Propulsion Light Treads Treads Light Treads Leg Biometal Leg Wheel Compact Wheel Flight Unit Xenon Bombardment Thruster Utility Advanced Targeting Computer Device Transmission Jammer Storage High-capacity Storage Unit Processor Advanced Targeting Computer Hackware Improved System Shield Protection Centrium Medium Armor Plating Weapon Enhanced Autogun Energy Gun Heavy Dispersion Rifle Energy Cannon Compact HERF Cannon Ballistic Gun Enhanced Autogun Ballistic Cannon Improved Light Cannon Launcher Improved Proton Missile Launcher Special Weapon Multitool Impact Weapon Thunder Hammer Slashing Weapon Centrium Greatsword Build | -11 -10 -10 -10 -8 -7 -7 -7 -7 -6 -6 -6 -6 -5 -5 -5 -5 -5 -4 -3 -2 -1 ------- Run | Yrd Mat Min Sub Mat Fac Low Low Dat Pro Fac Low Low Fac Ext Cet Arc Hub Fac Res Res Acc Slots Evolved 18 | . . . . 4 2 . . . . 2 . . 2 . . . . 2 2 2 2 Power 2 | . . . . . . . . . . 1 . . . . . . . . . 1 . Propulsion 4 | . . . . 2 . . . . . . . . . . . . . 2 . . . Utility 10 | . . . . 2 2 . . . . . . . 2 . . . . . 2 1 1 Weapon 2 | . . . . . . . . . . 1 . . . . . . . . . . 1 Parts Attached 221 | 3 11 . 5 29 7 1 3 . . 44 2 . 7 21 11 6 5 8 12 10 36 Power 39 | . 2 . 1 3 1 . . . . 9 . . . 5 3 . . . 1 5 9 Engine 17 | . 2 . 1 2 1 . . . . 7 . . . 3 . . . . . . 1 Core 4 | . . . . 1 . . . . . 1 . . . 2 . . . . . . . Reactor 18 | . . . . . . . . . . 1 . . . . 3 . . . 1 5 8 Propulsion 47 | 2 . . 1 10 2 1 1 . . 6 1 . 1 6 2 . . 1 3 . 10 Treads 34 | 2 . . . 9 2 1 1 . . 2 . . 1 5 2 . . 1 3 . 5 Leg 4 | . . . . . . . . . . . . . . . . . . . . . 4 Wheel 8 | . . . 1 1 . . . . . 4 1 . . 1 . . . . . . . Hover . | . . . . . . . . . . . . . . . . . . . . . . Flight 1 | . . . . . . . . . . . . . . . . . . . . . 1 Utility 77 | . 3 . . 9 3 . 2 . . 15 1 . 5 8 1 6 4 3 4 4 9 Device 39 | . 1 . . 2 2 . . . . 7 . . 4 5 . 5 . 3 2 3 5 Storage 5 | . 1 . . . . . . . . 1 . . . 2 . . . . 1 . . Processor 11 | . 1 . . 1 1 . 1 . . 4 . . . . . . . . 1 1 1 Hackware 5 | . . . . . . . . . . . . . . . . 1 3 . . . 1 Protection 17 | . . . . 6 . . 1 . . 3 1 . 1 1 1 . 1 . . . 2 Artifact . | . . . . . . . . . . . . . . . . . . . . . . Weapon 58 | 1 6 . 3 7 1 . . . . 14 . . 1 2 5 . 1 4 4 1 8 Energy Gun 14 | . 3 . . . . . . . . 7 . . . . 2 . . 1 1 . . Energy Cannon 1 | . . . . . . . . . . . . . . . . . . . 1 . . Ballistic Gun 21 | 1 1 . 1 2 . . . . . 2 . . . 1 3 . 1 3 1 1 4 Ballistic Cannon 8 | . 2 . 2 2 1 . . . . . . . . . . . . . . . 1 Launcher 8 | . . . . 3 . . . . . 4 . . 1 . . . . . . . . Special Weapon 1 | . . . . . . . . . . . . . . 1 . . . . . . . Impact Weapon 1 | . . . . . . . . . . 1 . . . . . . . . . . . Slashing Weapon 4 | . . . . . . . . . . . . . . . . . . . 1 . 3 Piercing Weapon . | . . . . . . . . . . . . . . . . . . . . . . Special Melee Weapon . | . . . . . . . . . . . . . . . . . . . . . . Unidentified Prototypes 24 | . . . . 2 1 . . . . 9 . . . 1 4 . 1 1 2 1 2 Corrupted Parts 5 | . . . . . . . . . . 1 . . . . 3 . . . . . 1 System Corruption 38 | . . . . . . . . . . 6 . . . . 26 . . . . . 6 Parts Lost 88 | . 2 . 6 2 . . . . . 20 1 1 1 1 . . . 1 3 2 48 Power 14 | . 1 . 1 . . . . . . 2 . . 1 . . . . . 1 . 8 Propulsion 22 | . . . 2 1 . . . . . 4 1 . . 1 . . . . . . 13 Utility 27 | . . . . 1 . . . . . 7 . . . . . . . 1 2 . 16 Weapon 25 | . 1 . 3 . . . . . . 7 . 1 . . . . . . . 2 11 Highest Loss Streak 26 | . 1 . 4 1 . . . . . 16 1 1 1 1 . . . 1 2 1 26 To Critical Strikes 1 | . . . . . . . . . . 1 . . . . . . . . . . . Average Backups 15 | 6 7 11 11 14 14 15 15 15 15 15 18 18 18 19 19 20 19 18 17 17 16 Power . | 1 . . . . . . . . . . . . . . . 1 . . . . . Propulsion 1 | 4 1 . . 1 1 2 2 2 2 1 1 1 1 1 . . . . . 1 . Utility 9 | . 4 8 8 8 8 8 8 8 8 9 15 16 15 15 15 13 12 12 8 8 8 Weapon 3 | 1 1 3 1 4 4 4 4 4 4 3 1 . 1 2 1 5 5 5 6 6 6 Tool/Special . | . . . . . . . . . . . . . . . . . . . . . . Unused Backups 55 | . 8 . . 16 . . . . . 6 . . 3 3 4 . 1 2 4 1 7 Power 3 | . 2 . . . . . . . . 1 . . . . . . . . . . . Propulsion 8 | . 4 . . 1 . . . . . . . . . . . . . . 2 1 . Utility 31 | . 1 . . 9 . . . . . 3 . . 2 3 4 . 1 1 2 . 5 Weapon 12 | . 1 . . 6 . . . . . 1 . . 1 . . . . 1 . . 2 Tool/Special 1 | . . . . . . . . . . 1 . . . . . . . . . . . Average Slot Usage (%) 93 | . 98 100 75 95 99 100 99 85 100 96 99 99 98 97 88 87 87 83 81 82 83 Engine 5 | . 13 14 12 8 7 7 7 7 7 10 6 6 4 4 . . . . . . . Core 1 | . . . . . . . . . . . 6 6 5 5 3 . . . . . . Reactor 2 | . . . . . . . . . . . . . . . 6 11 11 10 8 11 10 Treads 19 | . 28 28 7 29 30 30 30 30 30 19 . . 2 12 7 11 11 15 13 13 10 Wheel 3 | . . . 5 2 . . . . . 5 25 26 19 7 3 . . . . . . Device 12 | . 6 . . 1 14 15 15 15 15 12 6 6 15 16 17 16 14 15 18 17 20 Storage 6 | . 14 14 14 9 7 7 7 7 7 6 6 6 5 5 5 5 5 5 4 4 4 Processor 15 | . 7 14 14 15 15 15 14 15 15 15 20 20 17 17 17 17 17 15 18 20 18 Protection 5 | . . . . 9 6 7 7 7 7 4 6 6 5 5 5 5 3 4 4 3 3 Energy Gun 4 | . 11 . . . . . . . . 11 20 14 11 11 4 . . . . . 2 Ballistic Gun 9 | . 1 . . 14 15 15 15 1 14 7 . . . . 11 17 16 14 8 9 9 Ballistic Cannon 2 | . 14 28 20 3 . . . . . . . . . . . . . . . . . Peak Build Rating 188 | 6 12 12 12 29 39 39 44 44 44 93 74 73 79 96 129 129 129 143 151 170 188 Average Rating 75 | 6 11 12 9 26 36 38 40 36 43 64 73 71 77 85 115 128 126 140 145 162 166 On Entrance 69 | 6 6 12 12 11 29 38 39 44 44 44 78 73 72 75 94 129 129 129 142 149 163 Avg Prop Armor Cover (%) 10 | . . . . 8 . . . . . 15 . . 7 12 10 . . . 7 . 8 Naked Turns . | . . . . . . . . . . . . . . . . . . . . . . Heaviest Build 139 | 12 35 35 35 44 50 50 60 60 63 92 85 85 86 97 109 115 115 115 110 122 139 Greatest Support 230 | 40 40 40 40 86 91 91 93 93 93 100 60 60 60 104 160 160 160 230 230 230 230 Greatest Overweight (x) 10 | . . . 10 3 . . . . . 2 1 1 1 5 3 . . . . . 1 Average Overweight (x) . | . . . 3 . . . . . . . 1 1 1 2 2 . . . . . . Largest Inventory Capacity 20 | 8 15 15 15 15 15 15 15 15 15 20 20 20 20 20 20 20 20 20 20 20 20 Average Capacity 17 | 8 9 15 15 15 15 15 15 15 15 17 20 20 20 20 20 20 20 20 20 20 19 Most Carried 20 | 6 11 11 12 15 15 15 15 15 15 20 20 20 20 20 20 20 20 20 20 20 20 Average Carried 16 | 5 7 11 11 14 14 15 15 15 15 16 19 19 19 19 19 19 19 19 18 19 18 Final Capacity 20 | 8 15 15 15 15 15 15 15 15 15 20 20 20 20 20 20 20 20 20 20 20 5 Final Carried 20 | 5 11 11 11 15 15 15 15 15 15 20 20 19 20 20 20 20 20 20 20 20 5 Class Distribution -------------------- 38% | Mutant 15% | Scavenger-Mutant 10% | Scavenger-Gunner 9% | Scavenger-Tank 5% | Derelict-Mutant 4% | Derelict-Gunner 4% | Scavenger-Assassin 4% | Gunner 4% | Commander-Tank Dominant Class ---------------- Mutant | -10/Materials Mutant | -10/Mines Mutant | -10/Subcaves Mutant | -8/Materials Mutant | -7/Factory Mutant | -7/Lower Caves Mutant | -7/Lower Caves Derelict-Mutant | -7/Data Miner Derelict-Mutant | -6/Proximity Caves Derelict-Gunner | -6/Factory Scavenger-Gunner | -6/Lower Caves Scavenger-Mutant | -6/Lower Caves Scavenger-Mutant | -5/Factory Scavenger-Mutant | -5/Extension Commander-Tank | -5/Cetus Scavenger-Gunner | -5/Archives Scavenger-Tank | -5/Hub_04(d) Scavenger-Tank | -4/Factory Scavenger-Assassin | -3/Research Scavenger-Gunner | -2/Research Scavenger-Tank | -1/Access Resources | -11 -10 -10 -10 -8 -7 -7 -7 -7 -6 -6 -6 -6 -5 -5 -5 -5 -5 -4 -3 -2 -1 ----------- Run | Yrd Mat Min Sub Mat Fac Low Low Dat Pro Fac Low Low Fac Ext Cet Arc Hub Fac Res Res Acc Matter Collected 9912 | 226 489 102 157 1919 369 73 331 . 53 1349 65 20 50 305 284 362 144 529 577 727 1781 Remotely 966 | . . . . . . . . . . . . . . . . . . 258 419 . 289 Salvage Created 14731 | . 401 82 85 1892 547 52 376 . 74 1884 190 221 136 1012 340 379 184 676 791 1746 3663 Parts 695 | . 24 12 8 93 35 3 21 . 2 103 9 5 10 22 15 30 5 33 31 73 161 Haulers Intercepted 16 | . . . . 6 2 . . . . 1 . . . 1 . . . 1 1 1 3 Recyclers Shooed 14 | . 1 . . 2 . . . . . 6 . . . . . . . . 2 2 1 Parts Field Recycled . | . . . . . . . . . . . . . . . . . . . . . . Retrieved Matter . | . . . . . . . . . . . . . . . . . . . . . . Parts Self-Destructed 43 | . . . . . . 5 21 . 2 . 10 5 . . . . . . . . . Prevented 1 | . . . . . . . . . . . 1 . . . . . . . . . . Parts Restored . | . . . . . . . . . . . . . . . . . . . . . . Kills | -11 -10 -10 -10 -8 -7 -7 -7 -7 -6 -6 -6 -6 -5 -5 -5 -5 -5 -4 -3 -2 -1 ------- Run | Yrd Mat Min Sub Mat Fac Low Low Dat Pro Fac Low Low Fac Ext Cet Arc Hub Fac Res Res Acc Combat Hostiles Destroyed 211 | . 11 7 4 38 8 2 10 . 3 29 5 4 2 7 4 1 2 6 6 18 44 Melee 2 | . . . . . . . . . . . . . . 1 . . . . . . 1 Guns 162 | . 10 . . 24 8 2 10 . 1 22 5 3 2 3 4 1 2 6 6 18 35 Cannons 26 | . 1 7 4 10 . . . . . . . . . . . . . . . . 4 AOE 17 | . . . . 4 . . . . 2 7 . . . . . . . . . . 4 Classes Destroyed 21 | . 3 1 2 7 2 . . . 1 3 . . . 1 . . . . . . 1 Worker 9 | . . . . 3 . . . . . . . . . . . . . . . 3 3 Builder 11 | . . . . 1 . . . . . 3 . . . 1 . . 1 1 1 1 2 Tunneler 6 | . . 1 . 1 1 . . . . 1 . . . 1 . . . . . . 1 Hauler 16 | . . . . 6 2 . . . . 1 . . . 1 . . . 1 1 1 3 Recycler 15 | . . . . 4 1 . . . . 3 . . . 3 . . . 1 2 . 1 Mechanic 1 | . . . . . . . . . . 1 . . . . . . . . . . . Operator 13 | . . . . 1 . . . . . . . . 1 1 . 9 . . . 1 . Drone 2 | . . . . . . . . . 2 . . . . . . . . . . . . Watcher 4 | . 1 . . 1 1 . . . . . . . . . . . . . . . 1 Swarmer 50 | . 3 5 . 13 3 2 6 . . 3 3 . . . . . . . 1 . 11 Grunt 68 | . 8 2 . 15 2 . 4 . . 9 2 4 . 3 1 . 2 . . 7 9 Brawler 4 | . . . . 1 . . . . . 1 . . . . . . . . . 1 1 Duelist 1 | . . . . . . . . . . . . . . . . . . . . . 1 Sentry 25 | . . . . 9 . . . . 1 3 . . 1 3 . 1 . . . 3 4 Specialist 3 | . . . . . . . . . . 3 . . . . . . . . . . . Hunter 26 | . . . . . 1 . . . . 5 . . . . . . . 2 2 7 9 Programmer 21 | . . . . . 2 . . . . 4 . . 1 . . . . 2 3 . 9 Heavy 2 | . . . . . . . . . . 1 . . . . . . . 1 . . . Behemoth 2 | . . . . . . . . . . . . . . 1 . . . 1 . . . Cetus Guard 3 | . . . . . . . . . . . . . . . 3 . . . . . . Artisan 1 | . . . 1 . . . . . . . . . . . . . . . . . . Subdweller 4 | . . . 4 . . . . . . . . . . . . . . . . . . Thug 2 | . . . . . . . . . . . . . . . 1 . 1 . . . . Best Kill Streak 13 | . 4 3 2 8 2 2 3 . 2 13 3 4 1 3 2 4 2 3 4 5 9 Combat Bots Only 8 | . 3 3 2 6 2 2 3 . 2 8 3 4 1 2 2 1 2 2 4 5 6 Max Kills in Single Turn 6 | . 1 1 1 4 1 1 1 . 1 6 2 1 1 1 2 1 1 1 1 2 2 Gunslinging 1 | . . . . . . . . . . 1 1 . . . . . . . . 1 1 Exploded 3 | . . . . 3 . . . . 1 3 . . . . . . . . . . 2 Melee 1 | . . . . . . . . . . . . . . 1 . . . . . . 1 Uniques/NPCs Destroyed . | . . . . . . . . . . . . . . . . . . . . . . Combat | -11 -10 -10 -10 -8 -7 -7 -7 -7 -6 -6 -6 -6 -5 -5 -5 -5 -5 -4 -3 -2 -1 -------- Run | Yrd Mat Min Sub Mat Fac Low Low Dat Pro Fac Low Low Fac Ext Cet Arc Hub Fac Res Res Acc Hostile Shots Fired 1715 | . 42 21 20 142 43 10 50 . 39 299 17 31 13 24 10 8 23 93 75 110 645 Missed 555 | . 16 4 4 50 13 6 17 . 14 74 5 12 4 11 4 4 7 28 35 31 216 Hits 1160 | . 26 17 16 92 30 4 33 . 25 225 12 19 9 13 6 4 16 65 40 79 429 Melee 4 | . . . . . . . . . . 2 . . . . . . . . . . 2 Projectile 1156 | . 26 17 16 92 30 4 33 . 25 223 12 19 9 13 6 4 16 65 40 79 427 AOE 9 | . . . 8 . . . . . . . . . . . . . . 1 . . . Critical Strikes 40 | . . . . 5 2 . 1 . . 7 1 1 1 2 1 . 3 1 2 2 11 Actively Blocked 13 | . . . . . . . . . . . . . . . . . . . . 2 11 Part Disruptions 4 | . . . . . . . . . . . . . . . . . . 1 1 . 2 Damage Taken 21222 | . 352 183 711 1292 361 42 308 . 109 4176 90 367 189 379 252 110 216 1622 712 1639 8112 Core 3162 | . 21 23 144 163 38 . 77 . 7 592 37 37 24 92 47 . 18 107 25 91 1619 Absorbed by Shields 2345 | . . . . . 48 8 120 . 76 92 . . . 16 . . 224 275 . . 1486 Reduced by Siege Mode 76 | . . . . . . . . . . . . . . . . . . 76 . . . Redirected to Shielding 34 | . . . . 34 . . . . . . . . . . . . . . . . . Ignored by Resistances 385 | . . . . 25 34 14 81 . 62 10 . . . . . . . . . 135 24 Regen/Repaired (Parts) 315 | . 51 . . 182 82 . . . . . . . . . . . . . . . . Core Remaining (%) 73 | 100 . . 24 70 . . . . 82 . . 21 . . . . 81 90 98 93 . Volleys Fired 681 | . 28 16 22 131 33 5 33 . 7 79 6 6 11 24 14 20 6 31 43 49 117 Largest 4 | . 2 2 2 2 2 2 2 . 2 3 3 2 2 2 3 3 3 3 3 3 4 Hottest 275 | . 90 66 66 74 50 50 50 . 50 258 258 188 188 188 218 105 105 105 240 240 275 Shots Fired 1620 | . 56 32 37 255 66 10 67 . 12 212 18 13 20 45 32 61 18 94 94 126 352 Gun 1421 | . 50 . . 163 66 10 67 . 10 206 18 13 20 44 32 61 18 94 94 126 329 Cannon 179 | . 6 32 37 84 . . . . . . . . . . . . . . . . 20 Launcher 20 | . . . . 8 . . . . 2 6 . . . 1 . . . . . . 3 Special . | . . . . . . . . . . . . . . . . . . . . . . Kinetic 1291 | . 6 32 37 247 66 10 67 . 10 118 . . . . 24 61 18 94 92 125 284 Thermal 214 | . . . . . . . . . . 52 12 13 20 44 8 . . . 2 1 62 Explosive 16 | . . . . 8 . . . . 2 6 . . . . . . . . . . . Electromagnetic 99 | . 50 . . . . . . . . 36 6 . . 1 . . . . . . 6 Robot Hit Streak 30 | . 6 3 18 16 15 5 9 . 10 21 14 13 14 6 11 13 4 20 7 20 30 Robot Miss Streak 6 | . 5 2 2 6 2 2 5 . 2 2 3 . 3 3 2 2 2 4 3 3 5 Penetration Max 1 | . . . . . . . . . . . . . . . 1 1 1 1 1 1 1 Secondary Targets 31 | . 2 . . 2 . 1 1 . . 3 1 1 . . 1 2 1 1 2 2 11 Max Gunslinging Chain 2 | . 1 . . 1 . 1 1 . . 1 1 1 . . 1 1 1 1 1 1 2 Shots Hit Robots 1108 | . 39 15 29 166 53 6 46 . 6 153 9 14 12 39 20 42 13 66 58 79 243 Core Hits 527 | . 23 9 9 79 25 4 18 . 5 81 5 6 4 12 12 25 5 21 18 43 123 Critical Kills 60 | . . . . . . . 1 . . 4 2 . 1 3 2 3 . 5 6 16 17 Critical Parts Destroyed 64 | . . . . 2 . . . . . 4 . 1 1 5 1 5 1 2 9 13 20 Critical Strikes 137 | . . 1 2 5 . . 1 . . 9 2 1 2 8 3 8 1 9 15 29 41 Destroy 124 | . . . . 2 . . 1 . . 8 2 . 2 4 3 8 1 9 15 29 40 Blast 7 | . . 1 2 3 . . . . . . . . . . . . . . . . 1 Corrupt 1 | . . . . . . . . . . 1 . . . . . . . . . . . Smash 5 | . . . . . . . . . . . . 1 . 4 . . . . . . . Melee Attacks 50 | . . . . . . . . . . . . 2 7 17 . . . . 10 3 11 Impact 26 | . . . . . . . . . . . . 2 7 17 . . . . . . . Slashing 24 | . . . . . . . . . . . . . . . . . . . 10 3 11 Piercing . | . . . . . . . . . . . . . . . . . . . . . . Sneak Attacks 11 | . . . . . . . . . . . . . . 6 . . . . 2 1 2 Combat Hostiles . | . . . . . . . . . . . . . . . . . . . . . . Follow-up Attacks . | . . . . . . . . . . . . . . . . . . . . . . Damage Inflicted 31841 | . 517 320 589 3771 923 101 792 . 198 4849 267 468 422 1981 578 1360 443 1771 1840 2592 8059 Guns 23542 | . 449 . . 1883 905 101 792 . 106 3371 267 360 386 999 578 1360 434 1695 1561 2321 5974 Cannons 2920 | . 68 320 589 1355 . . . . . . . . . . . . . . . . 588 Explosions 3169 | . . . . 502 . . . . 92 1443 . . . . . . . 76 . 70 986 Melee 2060 | . . . . . . . . . . . . 108 36 982 . . . . 279 152 503 Ramming 150 | . . . . 31 18 . . . . 35 . . . . . . 9 . . 49 8 Kinetic 20326 | . 68 320 589 3238 905 101 792 . 106 1576 . . . . 338 1360 434 1695 1561 2321 4922 Thermal 5512 | . . . . . . . . . . 1011 180 360 386 999 240 . . 76 . . 2260 Explosive 2034 | . . . . 450 . . . . 92 1422 . . . . . . . . . 70 . Electromagnetic 1759 | . 449 . . 52 . . . . . 805 87 . . . . . . . . . 366 Impact 1126 | . . . . . . . . . . . . 108 36 982 . . . . . . . Slashing 934 | . . . . . . . . . . . . . . . . . . . 279 152 503 Piercing . | . . . . . . . . . . . . . . . . . . . . . . Highest Corruption 27 | . 1 1 1 2 1 1 1 1 1 6 6 6 4 5 27 27 1 5 2 . 15 Average Corruption 3 | . 1 1 1 2 1 1 1 1 1 6 6 6 2 3 7 14 1 4 1 . 4 Corruption Purged 33 | . . . . . . . . . . . . . . 4 . 27 . . . . 2 Corruption Blocked . | . . . . . . . . . . . . . . . . . . . . . . Effects 192 | . 7 2 3 10 3 8 7 1 4 14 11 5 2 34 13 29 . 7 8 . 24 Message Errors 46 | . 1 . . . 1 2 1 . 1 1 1 1 . 12 7 10 . 2 2 . 4 Matter Fused 60 | . 1 1 1 4 1 3 4 . 2 5 5 1 . 11 1 7 . 1 3 . 9 Heat Flow Errors 9 | . 1 . . . . . . . . 1 . . . 3 1 1 . . 1 . 1 Energy Discharges 24 | . 2 . 1 1 1 1 . 1 . 3 1 . . 4 1 3 . 2 1 . 2 Parts Rejected 1 | . . . . . . . . . . . . . . . . . . 1 . . . Parts Fused 2 | . . . . . . . . . . . 2 . . . . . . . . . . Data Loss (minor) 22 | . 2 1 1 2 . 1 1 . 1 . 2 1 . 2 2 4 . . . . 2 Data Loss (major) 7 | . . . . 2 . 1 . . . 3 . . . . . . . . . . 1 Misfires 8 | . . . . 1 . . 1 . . . . 1 . . . 2 . 1 1 . 1 Alerts 4 | . . . . . . . . . . 1 . 1 . . . 1 . . . . 1 Misdirections 1 | . . . . . . . . . . . . . . . . . . . . . 1 Weapon Failures 8 | . . . . . . . . . . . . . 2 2 1 1 . . . . 2 Overload Shots 4 | . . . . . . . . . . . . . . . . . . . 2 1 1 Overflow Damage 762 | . . . . 31 . . . . . 36 . 43 7 514 . . . . 63 . 68 Projectiles 32 | . . . . 12 . . . . . . . . . . . . . . . . 20 Explosions 63 | . . . . 19 . . . . . 36 . . . . . . . . . . 8 Melee 667 | . . . . . . . . . . . . 43 7 514 . . . . 63 . 40 Knockbacks 36 | . 1 4 4 13 . . . . . 1 . 2 1 6 . . . . . . 4 Impact 9 | . . . . . . . . . . 1 . 2 1 5 . . . . . . . Kinetic 26 | . 1 4 4 13 . . . . . . . . . . . . . . . . 4 Secondary 1 | . . . . . . . . . . . . . . 1 . . . . . . . Self-Inflicted Damage 682 | . . . . 55 . . . . . 276 . . . . . . . . . 111 240 Shots 13 | . . . . 1 . . . . . 6 . . . . . . . . . 1 5 Rammed 9 | . . . . 4 . . . . . 3 . . . . . . . . . 1 1 Targets Rammed 14 | . . . . 5 1 . . . . 3 . . . . . . 1 . . 2 2 Kicked . | . . . . . . . . . . . . . . . . . . . . . . Crushed 5 | . . . . 1 1 . . . . . . . . . . . 1 . . 1 1 Highest Temperature 427 | . 199 111 . 189 40 12 55 . 30 387 427 261 108 207 224 248 24 421 315 190 397 Average Temperature 76 | . 80 32 . 41 9 6 23 . 11 114 174 111 44 73 77 21 12 146 147 12 111 Received Heat Transfer 2772 | . 114 57 78 612 54 . 100 . 24 641 45 183 9 135 18 . 44 121 9 135 393 Effects 14 | . . . . . . . . . . 4 1 . . . . 1 . 6 . . 2 Shutdowns 2 | . . . . . . . . . . . 1 . . . . . . 1 . . . Energy Bleed 1 | . . . . . . . . . . 1 . . . . . . . . . . . Interference 10 | . . . . . . . . . . 3 . . . . . 1 . 5 . . 1 Short Circuit 1 | . . . . . . . . . . . . . . . . . . . . . 1 Siege Activations 2 | . . . . . . . . . . . . . . . 1 . . 1 . . . Total Turns 27 | . . . . . . . . . . . . . . . 4 . . 23 . . . Longest Duration 23 | . . . . . . . . . . . . . . . 4 . . 23 . . . Martial Activations . | . . . . . . . . . . . . . . . . . . . . . . Shielding Activations . | . . . . . . . . . . . . . . . . . . . . . . Robots Disrupted 1 | . 1 . . . . . . . . . . . . . . . . . . . . Combat Hostiles 1 | . 1 . . . . . . . . . . . . . . . . . . . . Robots Corrupted 8 | . . . . . . . . . . 1 . 1 . 6 . . . . . . . Combat Hostiles 3 | . . . . . . . . . . . . 1 . 2 . . . . . . . Parts Fried 20 | . 1 . . . . . . . . 3 . . . 14 2 . . . . . . Impact Corruptions 18 | . . . . . . . . . . . . 1 1 16 . . . . . . . Robots Melted 1 | . . . . . . . . . . . . . . 1 . . . . . . . Combat Hostiles 1 | . . . . . . . . . . . . . . 1 . . . . . . . Parts Melted 6 | . . . . . . . . . . 2 . . . 2 . . . . . . 2 Heat Transferred 6211 | . . . . . . . . . . 1221 222 444 407 1184 296 . . 50 . . 2387 Parts Sabotaged 2 | . . . . . . . . . . 2 . . . . . . . . . . . Parts Stolen . | . . . . . . . . . . . . . . . . . . . . . . Parts Stripped . | . . . . . . . . . . . . . . . . . . . . . . Power Chain Reactions 3 | . . . . . . . . . . . . . . . . . . . . . 3 Alert | -11 -10 -10 -10 -8 -7 -7 -7 -7 -6 -6 -6 -6 -5 -5 -5 -5 -5 -4 -3 -2 -1 ------- Run | Yrd Mat Min Sub Mat Fac Low Low Dat Pro Fac Low Low Fac Ext Cet Arc Hub Fac Res Res Acc Maximum Alert Level 3 | . . . . 2 . . . . . 2 . . . 2 1 1 3 2 1 1 3 Low Security (%) 60 | 100 100 100 . 49 100 . . . . 86 . . 100 55 13 64 44 . 82 56 3 Level 1 28 | . . . . 22 . . . . . 10 . . . 35 86 35 14 64 17 43 65 Level 2 9 | . . . . 27 . . . . . 3 . . . 8 . . 29 35 . . 15 Level 3 1 | . . . . . . . . . . . . . . . . . 10 . . . 15 Level 4 . | . . . . . . . . . . . . . . . . . . . . . . Level 5 . | . . . . . . . . . . . . . . . . . . . . . . High Security . | . . . . . . . . . . . . . . . . . . . . . . Max Security . | . . . . . . . . . . . . . . . . . . . . . . Peak Influence 879 | . 107 141 . 691 162 . . . . 650 . . 140 426 375 306 747 554 252 399 879 Initial 352 | . . . . . 162 . . . . 150 . . 140 32 213 114 24 352 252 . 229 Average 195 | . 24 73 . 292 37 . . . . 128 . . 91 165 289 184 314 385 79 176 412 Influence Increases 9771 | . 362 221 . 1279 263 50 210 . 30 1253 125 90 150 938 540 351 957 434 229 636 1653 Destroy 0b10 Robot/C 4820 | . 220 140 . 760 160 40 200 . 20 580 100 80 40 380 220 80 320 120 120 360 880 Destroy 0b10 Robot/NC 470 | . 5 5 . 85 25 . . . 10 45 . . 5 75 10 45 40 15 20 30 55 Destroy Leader 1008 | . 62 30 . 194 56 10 10 . . 142 10 10 20 32 20 . 78 42 32 82 178 Allied During Kill 1157 | . . . . . . . . . . . . . . 391 250 125 391 . . . . Successful Hack 258 | . 14 . . 75 22 . . . . 28 . . 29 18 7 . . . 27 11 27 Select Force Hacks 140 | . 60 . . 30 . . . . . . . . . . . . 50 . . . . Disable Machine 450 | . . 15 . 60 . . . . . 75 . . 15 . 15 75 30 135 . 15 15 Anti-Garrison Action 300 | . . . . . . . . . . 150 . . . . . . . . . . 150 Destroy Structure 643 | . 1 1 . 75 . . . . . 38 . . 26 42 18 26 48 122 30 108 108 Advance Influence 150 | . . . . . . . . . . 150 . . . . . . . . . . . Partial Spotted 45 | . . . . . . . . . . . . . 15 . . . . . . 15 15 Lose Combat Pursuer 330 | . . 30 . . . . . . . 45 15 . . . . . . . . 15 225 Influence Decreases 8915 | . 362 120 101 922 550 120 180 30 30 617 460 168 307 622 635 567 307 673 710 254 1180 Entered New Map 1858 | . . . 53 . 195 26 . 30 . . 236 58 83 34 169 173 47 369 230 1 154 Time Decay 5287 | . 289 120 28 602 355 94 180 . 30 510 214 100 214 458 286 334 100 294 300 233 546 Lost Part 737 | . 10 . 20 20 . . . . . 107 10 10 10 10 . . . 10 30 20 480 Lost Ally 520 | . . . . . . . . . . . . . . 120 180 60 160 . . . . Purge Threat 513 | . 63 . . 300 . . . . . . . . . . . . . . 150 . . Squads Dispatched 52 | . 3 . . 5 4 . . . . 9 . . 1 1 2 . 3 3 2 5 14 Investigation 14 | . 3 . . 3 1 . . . . . . . . 1 2 . 1 . 1 1 1 Extermination 13 | . . . . . 3 . . . . 2 . . 1 . . . . 1 . 2 4 Reinforcement 16 | . . . . 1 . . . . . 4 . . . . . . 2 2 1 1 5 Assault 4 | . . . . . . . . . . 2 . . . . . . . . . . 2 Garrison 5 | . . . . 1 . . . . . 1 . . . . . . . . . 1 2 Intercept . | . . . . . . . . . . . . . . . . . . . . . . Searches Triggered . | . . . . . . . . . . . . . . . . . . . . . . Construction Impeded 6 | . . . . . . . . . . 2 . . . . . . 1 . . . 3 Haulers Reinforced 1 | . . . . . . . . . . . . . . . . . . 1 . . . Active Scanning Responses . | . . . . . . . . . . . . . . . . . . . . . . Cargo Convoy Interrupts 1 | . . . . . . . . . . 1 . . . . . . . . . . . Stealth | -11 -10 -10 -10 -8 -7 -7 -7 -7 -6 -6 -6 -6 -5 -5 -5 -5 -5 -4 -3 -2 -1 --------- Run | Yrd Mat Min Sub Mat Fac Low Low Dat Pro Fac Low Low Fac Ext Cet Arc Hub Fac Res Res Acc Distress Signals 19 | . 4 . . 3 . . . . . 1 . . . . 2 . 3 . 2 1 3 Communications Jammed 15 | . . . . . . . . . . 8 . . . 3 . . . 2 2 . . Distress Signals 13 | . . . . . . . . . . 8 . . . 3 . . . . 2 . . Times Spotted 377 | . 20 9 4 50 18 3 10 . 5 43 6 4 5 25 14 13 24 12 8 23 81 Peak Tracking Total 17 | . 4 3 2 4 3 3 2 . 2 10 4 4 1 6 5 1 8 4 3 4 17 Tactical Retreats 12 | . . 2 . . . . . . . 2 1 . . . . . . . . 1 6 Traps | -11 -10 -10 -10 -8 -7 -7 -7 -7 -6 -6 -6 -6 -5 -5 -5 -5 -5 -4 -3 -2 -1 ------- Run | Yrd Mat Min Sub Mat Fac Low Low Dat Pro Fac Low Low Fac Ext Cet Arc Hub Fac Res Res Acc Traps Triggered 13 | . 2 . . 2 1 . . . . 1 . . . 4 . . . 1 . 1 1 Indirectly . | . . . . . . . . . . . . . . . . . . . . . . Trap Hack Attempts . | . . . . . . . . . . . . . . . . . . . . . . Triggered . | . . . . . . . . . . . . . . . . . . . . . . Disarmed . | . . . . . . . . . . . . . . . . . . . . . . Reprogrammed . | . . . . . . . . . . . . . . . . . . . . . . Reused . | . . . . . . . . . . . . . . . . . . . . . . Traps Extracted . | . . . . . . . . . . . . . . . . . . . . . . Installed . | . . . . . . . . . . . . . . . . . . . . . . Triggered . | . . . . . . . . . . . . . . . . . . . . . . Machines | -11 -10 -10 -10 -8 -7 -7 -7 -7 -6 -6 -6 -6 -5 -5 -5 -5 -5 -4 -3 -2 -1 ---------- Run | Yrd Mat Min Sub Mat Fac Low Low Dat Pro Fac Low Low Fac Ext Cet Arc Hub Fac Res Res Acc Machines Disabled 36 | . . 1 . 4 . . . . . 6 . . 1 2 3 5 2 9 . 1 2 Max in Single Turn 7 | . . 1 . 1 . . . . . 5 . . 1 1 1 1 1 7 . 1 2 Garrison Access 5 | . . . . 1 . . . . . 2 . . . . . . . . . 1 1 Network Hub 1 | . . . . . . . . . . . . . . . . . 1 . . . . Machines Repaired . | . . . . . . . . . . . . . . . . . . . . . . Machines Dismantled . | . . . . . . . . . . . . . . . . . . . . . . Machines Sabotaged 1 | . . . . . . . . . . . . . . . . . 1 . . . . Overloaded Fab Kills . | . . . . . . . . . . . . . . . . . . . . . . Hacking | -11 -10 -10 -10 -8 -7 -7 -7 -7 -6 -6 -6 -6 -5 -5 -5 -5 -5 -4 -3 -2 -1 --------- Run | Yrd Mat Min Sub Mat Fac Low Low Dat Pro Fac Low Low Fac Ext Cet Arc Hub Fac Res Res Acc Machines Accessed 73 | . 10 . . 14 8 3 1 4 . 8 . . 5 5 2 . 1 2 3 3 4 Terminals 45 | . 7 . . 8 3 . 1 . . 7 . . 4 5 2 . 1 . 2 2 3 Fabricators 4 | . . . . . 2 . . . . . . . . . . . . 2 . . . Repair Stations 5 | . 1 . . 2 1 . . . . . . . . . . . . . 1 . . Recycling Units 5 | . 2 . . 2 1 . . . . . . . . . . . . . . . . Scanalyzers 4 | . . . . 1 1 . . . . . . . 1 . . . . . . . 1 Garrison Access 3 | . . . . 1 . . . . . 1 . . . . . . . . . 1 . Total Hacks 228 | . 21 . . 58 19 9 5 33 . 16 . . 13 8 9 . 3 5 16 6 7 Successful 135 | . 12 . . 37 7 9 5 33 . 10 . . 2 2 4 . 1 . 8 4 1 Failed 91 | . 8 . . 20 12 . . . . 6 . . 11 6 5 . 2 5 8 2 6 Catastrophic 16 | . 1 . . 1 1 . . . . 1 . . 2 2 2 . . 2 2 . 2 Database Lockouts 2 | . 1 . . 1 . . . . . . . . . . . . . . . . . Manual 87 | . 17 . . 35 7 . . . . 11 . . 4 1 1 . 2 . 4 3 2 Terminals 123 | . 17 . . 31 4 . 5 . . 15 . . 9 8 9 . 3 . 11 5 6 Fabricators 12 | . . . . . 7 . . . . . . . . . . . . 5 . . . Repair Stations 21 | . 2 . . 11 3 . . . . . . . . . . . . . 5 . . Recycling Units 9 | . 2 . . 5 2 . . . . . . . . . . . . . . . . Scanalyzers 16 | . . . . 8 3 . . . . . . . 4 . . . . . . . 1 Garrison Access 5 | . . . . 3 . . . . . 1 . . . . . . . . . 1 . Terminal Hacks 74 | . 4 . . 7 1 9 5 33 . 2 . . 1 2 4 . . . 4 1 1 Record 27 | . . . . . . 7 5 11 . . . . . . 4 . . . . . . Part Schematic 15 | . 2 . . . . . . 13 . . . . . . . . . . . . . Robot Schematic 6 | . . . . . . . . 6 . . . . . . . . . . . . . Prototype ID Bank 8 | . 1 . . 1 1 . . 3 . 1 . . 1 . . . . . . . . Open Door 2 | . . . . . . 2 . . . . . . . . . . . . . . . Branch Access Points 3 | . . . . 1 . . . . . 1 . . . . . . . . . . 1 Emergency Access Points 1 | . . . . . . . . . . . . . . . . . . . 1 . . Terminal Index 1 | . . . . 1 . . . . . . . . . . . . . . . . . Alert Level 1 | . . . . 1 . . . . . . . . . . . . . . . . . Unreport Threat 4 | . 1 . . 2 . . . . . . . . . . . . . . 1 . . Locate Traps 2 | . . . . . . . . . . . . . . 2 . . . . . . . Dispatch Records 1 | . . . . . . . . . . . . . . . . . . . 1 . . Registered Components 3 | . . . . 1 . . . . . . . . . . . . . . 1 1 . Fabricator Hacks 2 | . . . . . 2 . . . . . . . . . . . . . . . . Network Status 1 | . . . . . 1 . . . . . . . . . . . . . . . . Load Schematic 1 | . . . . . 1 . . . . . . . . . . . . . . . . Repair Station Hacks 12 | . 2 . . 6 2 . . . . . . . . . . . . . 2 . . Scan Component 6 | . 1 . . 3 1 . . . . . . . . . . . . . 1 . . Repair 6 | . 1 . . 3 1 . . . . . . . . . . . . . 1 . . Recycling Unit Hacks . | . . . . . . . . . . . . . . . . . . . . . . Scanalyzer 7 | . . . . 7 . . . . . . . . . . . . . . . . . Insert Component 2 | . . . . 2 . . . . . . . . . . . . . . . . . Analyze 3 | . . . . 3 . . . . . . . . . . . . . . . . . Retrieve Study 2 | . . . . 2 . . . . . . . . . . . . . . . . . Garrison Access Hacks 3 | . . . . 1 . . . . . 1 . . . . . . . . . 1 . Seal Access 3 | . . . . 1 . . . . . 1 . . . . . . . . . 1 . Unauthorized Hacks 37 | . 6 . . 16 2 . . . . 7 . . 1 . . . 1 . 2 2 . Terminals 31 | . 4 . . 14 . . . . . 7 . . 1 . . . 1 . 2 2 . Track 2 | . . . . 2 . . . . . . . . . . . . . . . . . Assimilate 6 | . . . . 4 . . . . . 1 . . . . . . . . . 1 . Botnet 6 | . 1 . . 1 . . . . . 1 . . 1 . . . . . 1 1 . Disrupt 1 | . . . . 1 . . . . . . . . . . . . . . . . . Operators 1 | . . . . 1 . . . . . . . . . . . . . . . . . Skim 14 | . 3 . . 5 . . . . . 5 . . . . . . . . 1 . . Sabotage 1 | . . . . . . . . . . . . . . . . . 1 . . . . Fabricators 2 | . . . . . 2 . . . . . . . . . . . . . . . . Liberate 1 | . . . . . 1 . . . . . . . . . . . . . . . . Haulers 1 | . . . . . 1 . . . . . . . . . . . . . . . . Repair Stations 1 | . . . . 1 . . . . . . . . . . . . . . . . . Mechanics 1 | . . . . 1 . . . . . . . . . . . . . . . . . Recycling Units 3 | . 2 . . 1 . . . . . . . . . . . . . . . . . Tunnel 3 | . 2 . . 1 . . . . . . . . . . . . . . . . . Scanalyzers . | . . . . . . . . . . . . . . . . . . . . . . Garrison Access . | . . . . . . . . . . . . . . . . . . . . . . Data Cores Recovered 4 | . . . . . . . . . . . . . 1 1 . . 1 . . 1 . Used 2 | . . . . . . . . . . . . . . . . . 1 . . 1 . Hacking Detections 53 | . 6 . . 12 8 . . . . 7 . . 5 4 2 . 1 2 1 2 3 Full Trace Events 8 | . 1 . . 2 1 . . . . . . . . . 2 . . . . 1 1 Feedback Events . | . . . . . . . . . . . . . . . . . . . . . . Feedback Blocked . | . . . . . . . . . . . . . . . . . . . . . . Robot Schematics Acquired 6 | . . . . . . . . 6 . . . . . . . . . . . . . Robots Built . | . . . . . . . . . . . . . . . . . . . . . . Authchips . | . . . . . . . . . . . . . . . . . . . . . . Time . | . . . . . . . . . . . . . . . . . . . . . . Total Robot Build Rating . | . . . . . . . . . . . . . . . . . . . . . . Part Schematics Acquired 17 | . 2 . . 2 . . . 13 . . . . . . . . . . . . . Parts Built . | . . . . . . . . . . . . . . . . . . . . . . Authchips . | . . . . . . . . . . . . . . . . . . . . . . Time . | . . . . . . . . . . . . . . . . . . . . . . Total Part Build Rating . | . . . . . . . . . . . . . . . . . . . . . . Part Studies Acquired 2 | . . . . 2 . . . . . . . . . . . . . . . . . Parts Repaired 5 | . 1 . . 3 1 . . . . . . . . . . . . . . . . Time 268 | . 32 . . 90 38 . . . . . . . . . . . . . 108 . . Parts Recycled . | . . . . . . . . . . . . . . . . . . . . . . Recycled Matter . | . . . . . . . . . . . . . . . . . . . . . . Retrieved Matter . | . . . . . . . . . . . . . . . . . . . . . . Retrieved Components . | . . . . . . . . . . . . . . . . . . . . . . Parts Scanalyzed 2 | . . . . 2 . . . . . . . . . . . . . . . . . Part Schematics Acquired 2 | . . . . 2 . . . . . . . . . . . . . . . . . Parts Damaged . | . . . . . . . . . . . . . . . . . . . . . . Bothacking | -11 -10 -10 -10 -8 -7 -7 -7 -7 -6 -6 -6 -6 -5 -5 -5 -5 -5 -4 -3 -2 -1 ------------ Run | Yrd Mat Min Sub Mat Fac Low Low Dat Pro Fac Low Low Fac Ext Cet Arc Hub Fac Res Res Acc Used RIF Installer . | . . . . . . . . . . . . . . . . . . . . . . Robots Hacked . | . . . . . . . . . . . . . . . . . . . . . . Non-combat . | . . . . . . . . . . . . . . . . . . . . . . Combat . | . . . . . . . . . . . . . . . . . . . . . . Robot Hacks Applied . | . . . . . . . . . . . . . . . . . . . . . . Relay Couplers Released 1 | . . . . . . . . . . . . . . . . . . . . . 1 Machine Destruction 1 | . . . . . . . . . . . . . . . . . . . . . 1 Fabnet Peak Effective % . | . . . . . . . . . . . . . . . . . . . . . . Robots Rewired 9 | . . . . . . . . . . . . . . 9 . . . . . . . Allies Hacked 1 | . . . . . . . . . . . . . . 1 . . . . . . . Hacks Repelled . | . . . . . . . . . . . . . . . . . . . . . . Allies | -11 -10 -10 -10 -8 -7 -7 -7 -7 -6 -6 -6 -6 -5 -5 -5 -5 -5 -4 -3 -2 -1 -------- Run | Yrd Mat Min Sub Mat Fac Low Low Dat Pro Fac Low Low Fac Ext Cet Arc Hub Fac Res Res Acc Total Allies 33 | . . . . . . . . . . . . . . 28 5 . . . . . . Largest Group 21 | . . . . . . . . . . . . . . 21 21 14 10 . . . . Highest-Rated Group 970 | . . . . . . . . . . . . . . 744 970 803 547 . . . . Highest-Rated Ally 159 | . . . . . . . . . . . . . . 159 153 147 96 . . . . Total Orders . | . . . . . . . . . . . . . . . . . . . . . . Ally Attacks 370 | . . . . . . . . . . . . . . 159 107 21 83 . . . . Total Damage 8702 | . . . . . . . . . . . . . . 3230 2122 488 2862 . . . . Kills 56 | . . . . . . . . . . . . . . 20 11 3 22 . . . . Allies Corrupted 4 | . . . . . . . . . . . . . . 1 . . 3 . . . . Allies Melted 1 | . . . . . . . . . . . . . . . . . 1 . . . . Intel | -11 -10 -10 -10 -8 -7 -7 -7 -7 -6 -6 -6 -6 -5 -5 -5 -5 -5 -4 -3 -2 -1 ------- Run | Yrd Mat Min Sub Mat Fac Low Low Dat Pro Fac Low Low Fac Ext Cet Arc Hub Fac Res Res Acc Active Infowar (turns) 16742 | . 630 242 263 2448 1490 742 659 142 629 1554 450 218 459 1679 623 747 201 641 702 648 1575 Optics 13266 | . 630 242 263 2448 1100 . . . . 730 450 218 459 1679 623 747 201 551 702 648 1575 IFF 1332 | . . . . . . . . . . . . . 391 941 . . . . . . . Terrain 1970 | . . . . . . . . . . . . . . . . . . . 702 410 858 Seismic 520 | . . . . 327 . . . . . . . . 193 . . . . . . . . T.N.C. 1545 | . . . . . 390 742 413 . . . . . . . . . . . . . . Jamming 7353 | . . . . . 1484 742 659 142 629 1132 . . 253 1679 19 . . 427 187 . . Robot Analysis Total . | . . . . . . . . . . . . . . . . . . . . . . Derelict Logs Recovered 7 | . . 1 . . . 2 2 . 1 . 1 . . . . . . . . . . Drone Launches . | . . . . . . . . . . . . . . . . . . . . . . Drone Recoveries . | . . . . . . . . . . . . . . . . . . . . . . Exploration | -11 -10 -10 -10 -8 -7 -7 -7 -7 -6 -6 -6 -6 -5 -5 -5 -5 -5 -4 -3 -2 -1 ------------- Run | Yrd Mat Min Sub Mat Fac Low Low Dat Pro Fac Low Low Fac Ext Cet Arc Hub Fac Res Res Acc Turns Passed 17353 | 9 1201 242 263 2448 1490 742 659 142 629 1585 450 218 459 1679 623 747 201 641 702 648 1575 Spaces Moved 8648 | 3 626 121 102 1091 743 455 351 89 377 834 383 168 324 817 245 156 104 315 323 273 748 Core 15 | . . . 14 . . . . . . . . . . . . . . . . . 1 Treads 6251 | 3 626 121 20 874 743 455 351 89 377 623 . . . 99 76 156 104 315 323 273 623 Legs 20 | . . . . . . . . . . . . . . . . . . . . . 20 Wheels 2258 | . . . 68 217 . . . . . 211 383 168 324 718 169 . . . . . . Hover . | . . . . . . . . . . . . . . . . . . . . . . Flight 104 | . . . . . . . . . . . . . . . . . . . . . 104 Fastest Speed 40 | 160 160 160 110 105 160 160 156 156 156 95 110 112 112 115 145 160 160 160 160 160 40 Average Speed 149 | 160 160 160 189 151 160 160 158 156 156 143 111 112 113 137 154 160 160 160 160 160 147 Slowest Speed 550 | 160 160 160 550 160 160 160 160 156 156 156 112 112 115 175 240 160 160 160 160 160 240 Overloaded Moves . | . . . . . . . . . . . . . . . . . . . . . . Propulsion Burnouts . | . . . . . . . . . . . . . . . . . . . . . . Robots Hopped . | . . . . . . . . . . . . . . . . . . . . . . Potential Cave-ins . | . . . . . . . . . . . . . . . . . . . . . . Cave-ins Triggered . | . . . . . . . . . . . . . . . . . . . . . . Exploration Rate (%) 42 | 2 92 26 8 81 18 58 50 68 59 20 59 19 9 87 87 99 26 15 12 11 25 Regions Visited 21 Branch Regions 12 Pre-discovered Areas 6 | . 2 . . 2 . . 1 1 . . . . . . . . . . . . . Known Exits Taken 13 | . . . . 1 1 1 1 1 1 1 1 1 1 . . . 1 1 1 . . Unknown Exits Taken 8 | 1 1 1 1 . . . . . . . . . . 1 1 1 . . . 1 . Scrap Searched 8 | . . . . . . 3 4 . . . 1 . . . . . . . . . . Spaces Dug 83 | . 1 . . 40 . . . . 7 4 . . 5 3 . . . 3 11 4 5 Terrain Destroyed 353 | . 1 1 . 73 . . . . 18 36 4 1 11 13 3 13 6 69 21 36 47 Melee 22 | . . . . . . . . . . . . . 5 3 . . . . 8 2 4 Projectile 110 | . 1 1 . 9 . . . . . 12 4 1 6 10 3 13 6 16 10 2 16 AOE 212 | . . . . 64 . . . . 18 24 . . . . . . . 52 . 31 23 Terrain Rammed . | . . . . . . . . . . . . . . . . . . . . . . Walls Destroyed . | . . . . . . . . . . . . . . . . . . . . . . Machines Disabled . | . . . . . . . . . . . . . . . . . . . . . . Actions | -11 -10 -10 -10 -8 -7 -7 -7 -7 -6 -6 -6 -6 -5 -5 -5 -5 -5 -4 -3 -2 -1 --------- Run | Yrd Mat Min Sub Mat Fac Low Low Dat Pro Fac Low Low Fac Ext Cet Arc Hub Fac Res Res Acc Total 11982 | 6 774 138 133 1705 1006 464 417 92 409 1104 393 182 384 1300 472 620 130 405 438 404 1006 Wait 1757 | . 76 2 3 369 205 3 28 . 24 69 2 6 16 234 174 434 . 28 22 34 28 Move 8627 | 2 625 120 101 1090 742 454 350 88 376 833 382 167 323 816 244 155 103 314 322 272 748 Hop . | . . . . . . . . . . . . . . . . . . . . . . Pick Up 138 | . 14 . 2 29 5 . . . . 30 1 . 8 3 8 1 4 6 9 6 12 Fast Attach 135 | . 8 . 3 16 6 . 1 2 . 25 . . 5 12 7 6 2 5 6 6 25 Attach 74 | . 2 . 2 4 3 . . . . 17 1 1 . 1 . 1 3 2 7 6 24 Detach 13 | . . . . . . . . . . 2 . . 1 1 . . . . 3 1 5 Swap 117 | 3 2 . . 22 1 1 2 . 2 13 1 . 3 13 7 . 4 7 6 14 16 Drop 212 | 1 13 . . 39 9 1 3 2 . 33 . . 10 22 18 3 7 12 10 11 18 Fire 681 | . 28 16 22 131 33 5 33 . 7 79 6 6 11 24 14 20 6 31 43 49 117 Melee 50 | . . . . . . . . . . . . 2 7 17 . . . . 10 3 11 Ram . | . . . . . . . . . . . . . . . . . . . . . . Kick . | . . . . . . . . . . . . . . . . . . . . . . Crush 14 | . . . . 5 1 . . . . 3 . . . . . . 1 . . 2 2 Escape Stasis 32 | . . . . . . . . . . . . . . 32 . . . . . . . Rewire 131 | . 6 . . . 1 . . . . . . . . 124 . . . . . . . Trap . | . . . . . . . . . . . . . . . . . . . . . . Miscellaneous 1 | . . . . . . . . . . . . . . 1 . . . . . . . Route ------- -11/Scrapyard -10/Materials (discovered 5 exits: [*Mat x2] / [*Min x2] / [*Sub]) -10/Mines -10/Subcaves -8/Materials (discovered 3 exits: *Fac x3) -7/Factory (discovered 6 exits: Fac x3 / Sto / *Low x2) -7/Lower Caves -7/Lower Caves (discovered 2 exits: Fac / *Dat) -7/Data Miner -6/Proximity Caves -6/Factory (discovered 6 exits: Fac x4 / *Low x2) -6/Lower Caves -6/Lower Caves -5/Factory (discovered 3 exits: *Upp / *Ext x2) -5/Extension (discovered 2 exits: *Fac / *Cet) -5/Cetus (discovered 3 exits: *Fac x2 / [*Arc]) -5/Archives (discovered 3 exits: *Fac / *Hub x2) -5/Hub_04(d) (discovered 2 exits: *Fac x2) -4/Factory -3/Research -2/Research -1/Access (discovered 1 exit: Com) History --------- Turn | Location | Event 7 | -11/Scrapyard | Discovered new exit (range 2) 10 | -11/Scrapyard | Entered Materials 302 | -10/Materials | Build established: Mutant 356 | -10/Materials | Central database locked down 471 | -10/Materials | Discovered new exit (range 16) 742 | -10/Materials | Repaired Imp. Light Cannon 838 | -10/Materials | Discovered new exit (range 14) 908 | -10/Materials | Discovered new exit (range 8) 1032 | -10/Materials | Discovered new exit (range 7) 1063 | -10/Materials | Discovered new exit (range 7) 1211 | -10/Materials | Entered Mines 1314 | -10/Mines | Learned location of 1 exit from Materials 1397 | -10/Mines | Discovered new exit (range 11) 1453 | -10/Mines | Entered Subcaves 1454 | -10/Subcaves | Approached by a straggling Scientist 1527 | -10/Subcaves | Core integrity fell below 50% 1557 | -10/Subcaves | Lost 4 parts (2n2w) 1700 | -10/Subcaves | Discovered new exit (range 10) 1716 | -10/Subcaves | Entered Materials 1716 | -8/Materials | Evolved 4 slots: Propulsion x2, Utility x2 1717 | -8/Materials | Identified exit to Factory 2044 | -8/Materials | Discovered exit to Factory (range 11) 2250 | -8/Materials | Build established: Scavenger-Mutant 2609 | -8/Materials | Build established: Mutant 2682 | -8/Materials | Repaired Multitool 3238 | -8/Materials | Garrison activated, responded to threat 3323 | -8/Materials | Central database locked down 3700 | -8/Materials | Repaired Imp. Treads+ 3727 | -8/Materials | Repaired Lgt. Treads 3918 | -8/Materials | Learned location of 1 exit from Lower Caves 3983 | -8/Materials | Learned 12 Factory zone layouts 4006 | -8/Materials | Learned Storage garrison access intel 4008 | -8/Materials | Learned location of 1 exit from Storage 4009 | -8/Materials | Learned location of 1 exit from Lower Caves 4164 | -8/Materials | Entered Factory 4164 | -7/Factory | Evolved 2 slots: Utility x2 4165 | -7/Factory | Identified exit to Factory 4166 | -7/Factory | Identified exit to Lower Caves 4166 | -7/Factory | Identified exit to Storage 4256 | -7/Factory | Repaired Reactive Plating 5654 | -7/Factory | Entered Lower Caves 5655 | -7/Lower Caves | Identified exit to Lower Caves 5803 | -7/Lower Caves | Learned location of 1 exit from Factory 5982 | -7/Lower Caves | Entered an active Warlord outpost 5995 | -7/Lower Caves | Learned location of 1 exit from Factory 5995 | -7/Lower Caves | Learned 8 Research zone layouts 5995 | -7/Lower Caves | Learned Factory emergency access door positions 5995 | -7/Lower Caves | Learned Research stockpile data 6329 | -7/Lower Caves | Learned location of 1 exit from Lower Caves 6396 | -7/Lower Caves | Entered another Lower Caves area 6397 | -7/Lower Caves | Identified exit to Data Miner 6453 | -7/Lower Caves | Attracted the attention of an 0b10 base 6564 | -7/Lower Caves | Learned Factory emergency access door positions 6564 | -7/Lower Caves | Learned Extension stockpile data 6987 | -7/Lower Caves | Learned Factory emergency access door positions 7055 | -7/Lower Caves | Entered Data Miner 7056 | -7/Data Miner | Identified exit to Proximity Caves 7086 | -7/Data Miner | Met Data Miner 7116 | -7/Data Miner | Learned location of Section 7 (-2) 7116 | -7/Data Miner | Acquired the access code to Warlord's prototype stash 7138 | -7/Data Miner | Received God Mode back door access code from Data Miner 7197 | -7/Data Miner | Entered Proximity Caves 7226 | -6/Proximity Caves | Build established: Derelict-Mutant 7235 | -6/Proximity Caves | Attracted the attention of an 0b10 checkpoint 7397 | -6/Proximity Caves | Spotter reported a threat 7516 | -6/Proximity Caves | Learned Factory terminal intel 7781 | -6/Proximity Caves | Discovered exit to Factory (range 8) 7826 | -6/Proximity Caves | Entered Factory 7826 | -6/Factory | Evolved 2 slots: Power x1, Weapon x1 7827 | -6/Factory | Identified exit to Factory 7829 | -6/Factory | Loaded intel: 26 terminal locations 8132 | -6/Factory | Build established: Derelict-Gunner 8985 | -6/Factory | Cargo convoy interrupted 9014 | -6/Factory | Core integrity fell below 50% 9035 | -6/Factory | Found Prototype Device 9042 | -6/Factory | Destroyed 8 combat bots 9042 | -6/Factory | Lost 16 parts (1p4n4u7w) 9105 | -6/Factory | Identified Exp. Thermal Defense Suite 9272 | -6/Factory | Learned location of 2 exits from Proximity Caves 9291 | -6/Factory | Identified exit to Lower Caves 9291 | -6/Factory | Watched by a mysterious "MATRIX" hacker 9291 | -6/Factory | Garrison activated, responded to threat 9350 | -6/Factory | Learned location of 1 exit from Hub_04(d) 9374 | -6/Factory | Learned Hub_04(d) trap positions 9390 | -6/Factory | Learned location of 1 exit from Cetus 9401 | -6/Factory | Learned Extension stockpile data 9411 | -6/Factory | Entered Lower Caves 9412 | -6/Lower Caves | Identified exit to Lower Caves 9494 | -6/Lower Caves | Spotted B-75 Beast 9603 | -6/Lower Caves | Build established: Gunner 9620 | -6/Lower Caves | Learned location of 1 exit from Proximity Caves 9861 | -6/Lower Caves | Entered another Lower Caves area 9959 | -6/Lower Caves | Discovered exit to Factory (range 4) 10079 | -6/Lower Caves | Entered Factory 10079 | -5/Factory | Evolved 2 slots: Utility x2 10080 | -5/Factory | Identified exit to Upper Caves 10080 | -5/Factory | Identified exit to Extension 10187 | -5/Factory | Build established: Scavenger-Mutant 10538 | -5/Factory | Entered Extension 10607 | -5/Extension | Rescued a captive Derelict 10608 | -5/Extension | Rescued a captive Derelict 10681 | -5/Extension | Rescued a captive Derelict 10698 | -5/Extension | Rescued a captive Derelict 10700 | -5/Extension | Rescued a captive Derelict 10723 | -5/Extension | Rescued a captive Derelict 10731 | -5/Extension | Rescued a captive Derelict 10732 | -5/Extension | Rescued a captive Derelict 10829 | -5/Extension | Rescued a captive Derelict 10892 | -5/Extension | Rescued A7 11412 | -5/Extension | Spotted B-75 Beast 11434 | -5/Extension | Destroyed B-75 Beast 11437 | -5/Extension | Spotted B-75 Beast 11469 | -5/Extension | Allies destroyed B-75 Beast 11486 | -5/Extension | P-70 Sage assimilated allied CY-LYV(b) 11508 | -5/Extension | Lost 5 allies 11730 | -5/Extension | Rescued a captive Derelict 11731 | -5/Extension | Rescued a captive Derelict 11829 | -5/Extension | Rescued a captive Derelict 11830 | -5/Extension | Rescued a captive Derelict 11837 | -5/Extension | Rescued a captive Derelict 11842 | -5/Extension | Rescued a captive Derelict 11854 | -5/Extension | Rescued a captive Derelict 11855 | -5/Extension | Rescued a captive Derelict 12048 | -5/Extension | Rescued a captive Derelict 12130 | -5/Extension | Discovered new exit (range 10) 12131 | -5/Extension | Discovered new exit (range 6) 12217 | -5/Extension | Entered Cetus 12217 | -5/Cetus | Accompanied by 21 allies (A7) 12218 | -5/Cetus | Identified exit to Factory 12222 | -5/Cetus | Acquired a Cetus Manufacturing Module code from A7 12223 | -5/Cetus | Spotted Cetus Guard 12225 | -5/Cetus | Spotted Cetus Guard 12227 | -5/Cetus | Spotted Cetus Guard 12227 | -5/Cetus | Spotted Cetus Guard 12240 | -5/Cetus | Destroyed Cetus Guard 12253 | -5/Cetus | Destroyed Cetus Guard 12256 | -5/Cetus | Allies destroyed Cetus Guard 12312 | -5/Cetus | Lost 8 allies 12374 | -5/Cetus | Door terminal overloaded 12400 | -5/Cetus | Escorted A7 to Cetus Mainframe 12419 | -5/Cetus | Started Cetus Manufacturing Module 12444 | -5/Cetus | Manufactured an Enhanced Grunt 12469 | -5/Cetus | Manufactured an Enhanced Grunt 12494 | -5/Cetus | Manufactured an Enhanced Grunt 12519 | -5/Cetus | Manufactured an Enhanced Grunt 12544 | -5/Cetus | Manufactured an Enhanced Grunt 12570 | -5/Cetus | Discovered new exit (range 22) 12575 | -5/Cetus | Build established: Commander-Tank 12603 | -5/Cetus | Spotted Cetus Guard 12604 | -5/Cetus | Spotted Cetus Guard 12605 | -5/Cetus | Spotted Cetus Guard 12612 | -5/Cetus | Allies destroyed Cetus Guard 12617 | -5/Cetus | Spotted Cetus Guard 12623 | -5/Cetus | Allies destroyed Cetus Guard 12627 | -5/Cetus | Allies destroyed Cetus Guard 12628 | -5/Cetus | Discovered exit to Factory (range 22) 12650 | -5/Cetus | Destroyed Cetus Guard 12652 | -5/Cetus | Met Revision 17 12655 | -5/Cetus | Lost 3 allies 12655 | -5/Cetus | System corruption reached 10% 12840 | -5/Cetus | Entered Archives 12840 | -5/Archives | Accompanied by 14 allies (A7) 12845 | -5/Archives | Received a hacking code to weaken MAIN.C 12924 | -5/Archives | Discovered exit to Factory (range 17) 12933 | -5/Archives | Lost 3 allies 13228 | -5/Archives | Build established: Scavenger-Gunner 13247 | -5/Archives | Discovered new exit (range 19) 13532 | -5/Archives | Discovered new exit (range 17) 13587 | -5/Archives | Entered Hub_04(d) 13587 | -5/Hub_04(d) | Accompanied by 10 allies 13589 | -5/Hub_04(d) | Loaded intel: 18 trap records 13619 | -5/Hub_04(d) | Network Hub disabled 13766 | -5/Hub_04(d) | Spotted Lightning 13767 | -5/Hub_04(d) | Spotted Lightning 13767 | -5/Hub_04(d) | Spotted Lightning 13770 | -5/Hub_04(d) | Allies destroyed Lightning 13770 | -5/Hub_04(d) | Discovered exit to Factory (range 14) 13788 | -5/Hub_04(d) | Entered Factory 13788 | -4/Factory | Evolved 2 slots: Propulsion x2 13789 | -4/Factory | Identified exit to Research 13804 | -4/Factory | Lost 8 allies 13834 | -4/Factory | Found Quantum Capacitor 13952 | -4/Factory | Build established: Scavenger-Tank 14196 | -4/Factory | Spotted B-86 Titan 14251 | -4/Factory | Destroyed B-86 Titan 14429 | -4/Factory | Entered Research 14429 | -3/Research | Evolved 2 slots: Utility x2 14430 | -3/Research | Identified exit to Research 14515 | -3/Research | Build established: Scavenger-Gunner 14629 | -3/Research | Revision forces began assault on 0b10 14709 | -3/Research | Met up with Revision 17++ 15060 | -3/Research | Build established: Scavenger-Assassin 15129 | -3/Research | Research terminal network offline 15131 | -3/Research | Entered another Research area 15131 | -2/Research | Evolved 2 slots: Power x1, Utility x1 15464 | -2/Research | Spotted B-90 Cyclops 15602 | -2/Research | Garrison activated, responded to threat 15712 | -2/Research | Discovered new exit (range 17) 15779 | -2/Research | Entered Access 15779 | -1/Access | Evolved 2 slots: Utility x1, Weapon x1 15990 | -1/Access | Identified exit to Command 16632 | -1/Access | Build established: Scavenger-Tank 16971 | -1/Access | Garrison activated, responded to threat 17041 | -1/Access | Lost 5 parts (2n2u1w) 17155 | -1/Access | System corruption reached 10% 17158 | -1/Access | Lost 9 parts (3p3n1u2w) 17300 | -1/Access | Core integrity fell below 50% 17329 | -1/Access | Lost 26 parts (4p6n10u6w) 17347 | -1/Access | Core integrity fell below 20% 17354 | -1/Access | Destroyed by P-80 Master with Gamma Rifle Last Messages --------------- 17330_ Destroyed Gravmag System. 17333_ Anti-Orbital Battery disabled. 17339_ System corrupted: Matter fused (-7). 17339_ W-44 Eye sends out distress signal. 17339_ Slug penetrates W-44 Eye. 17339_ Penetrated by Slug. 17340_ Triggered Hellfire Trap. 17340_ An explosion rips through the floor. 17341_ W-44 Eye sends out distress signal. 17343_ Adv. Targeting Computer destroyed. 17344_ Slug penetrates P-80 Master. 17344_ Slug penetrates Wall. 17345_ Slug penetrates P-80 Master. 17348_ Slug penetrates Wall. 17349_ Connecting with Terminal... 17351_ Penetrated by Slug. 17351_ Xenon Bombardment Thruster destroyed. 17352_ Imp. System Shield destroyed. 17354_ S-43 Plague destroyed. 17354_ Ionic Axe destroyed. Map ----- +----------------------------------------------------+ | ????????????????????+ """"" #????? | | ????????????????????# """""""" ###### | | ?????????????####???# """""""" # | | ?????????????? * ??## "" "" # | | ?????????#? ?# !! ! # " | | ?????????# " ?# ! = * # """ | | ?????????# """ ?+ ] + "" | | ??????????? """ # """ """ # " | | ????????????? " # """T""" # | | ??????????????? ## ##################### | | ????????????????? # ! #??###### | | ?????????????????## ?????????? | | ?????????????????# """"" "??????????????? | | ?????????????????# """"" "??????????????? | | ???????????######## * """"" "??????????????? | | ???????????# " """"" "??????????????? | | ???????????# """ """"" "??????????????? | | ???????????# """ # # ?????????? | | ???????????# " # # #???????? | | ???????????# ?+ ##################???????? | | ???????????# ??# ##########???????????????? | | ???????????# ???# # #???????????????? | | ???????????# ????# # #???????????????? | | ???????????# ?????# # ""#???????????????? | | ???????????###??????# #s ""#???????????????? | | ????????????????????# #@ T"#???????????????? | | ????????????????????# =pssss ""#???????????????? | | ????????????????????# hh#= = ""#???????????????? | | ????????????????????# p # #???????????????? | | ????????????????????#k # #???????????????? | | ??????????????????? ##########???????????????? | | ?????????????????? #????????????????????????? | | ????????????????? #????????????????????????? | | ????????????????##### #????????????????????????? | | ????????????????????# #????????????????????????? | | ????????????????????# #????????????????????????? | | ????????????????????# #????????????????????????? | | ????????????????????# #????????????????????????? | | ????????????????????# #????????????????????????? | | ????????????????????# #????????????????????????? | | ????????????????????# #????????????????????????? | | ????????????????????# #????????????????????????? | | ????????????????????# #????????????????????????? | | ????????????????????# #????????????????????????? | | ???????????????????? ????????????????????????? | | ???????????????????? ????????????????????????? | | ???????????????????? ????????????????????????? | | ???????????????????? ??????????????????????? | | ???????????????????? ????????????????????????? | | ?????????????????????????????????????????????????? | +----------------------------------------------------+ Best States ------------- Heat Dissipation 102 Coolant Potential 50 Energy Generation 65 Energy Capacity 1090 Matter Stores 300 Matter Capacity 300 Sight Range 22 Terrain Scan Range 20 Terrain Scan Density 210 Jamming Range 14 Additional Mass Support 20 Armor Coverage 600 Resistance: KI 30 Resistance: TH 25 Propulsion Shielding 33 Utility Shielding 66 Weapon Shielding 66 Weapon Cycling 20 Phase Shifting 15 Evasion (%) 62 Targeting Accuracy 16 Target Analysis 8 Core Analysis 6 Recoil Reduction 6 Offensive Hacking 24 Defensive Hacking 12 Item Schematics ----------------- Hcp. Storage Unit | -10/Materials | Hacked Huge Storage Unit | -10/Materials | Hacked Enh. Autogun | -8/Materials | Scanalyzed Cooling System | -8/Materials | Scanalyzed Combat Drone Bay | -7/Data Miner | Free Lgt. Regenerative Plating | -7/Data Miner | Free Cld. Cesium-ion Thruster | -7/Data Miner | Free Gravity Neutralizer | -7/Data Miner | Free Shock Maul | -7/Data Miner | Free Linear Gravjet | -7/Data Miner | Free Imp. Shock Absorption System | -7/Data Miner | Free Wave Gun | -7/Data Miner | Free EM Shield | -7/Data Miner | Free Gyrokinetic Inverter | -7/Data Miner | Free Hvy. Phase Cannon | -7/Data Miner | Free Centrium Wheel | -7/Data Miner | Free Field Propulsion Array | -7/Data Miner | Free Robot Schematics ------------------ Y-54 Guardian | -7/Data Miner | Free M-14 Sweeper | -7/Data Miner | Free M-28 Smith | -7/Data Miner | Free M-22 Extractor | -7/Data Miner | Free A-15 Conveyor | -7/Data Miner | Free R-10 Processor | -7/Data Miner | Free Fabricated ------------ Nothing Repaired ---------- Imp. Light Cannon | 62% | -10/Materials Multitool | 50% | -8/Materials Imp. Treads | 26% | -8/Materials Lgt. Treads | 62% | -8/Materials Reactive Plating | 54% | -7/Factory Studied --------- Missile Launcher | -8/Materials | Hacked Imp. Treads | -8/Materials | Hacked Alien Tech Used ----------------- None Achievements -------------- Art Critic Deadly Precision Challenges ------------ None Game ------ Seed AluminumTrackerBuckler Manual? 0 Play Time 03:06:04 Cumulative 298.2 hours Start 2026.07.01 @ 16:06:47 End 2026.07.01 @ 19:24:42 Sessions 1 Manual Loads 0 Difficulty Rogue Special Mode None Game No. 172 Rogue 172 Adventurer 0 Explorer 0 Win Type - Total 16 Types 16/0/0/0/0/0/0/0/0/0 Lore% 75 Gallery% 66 Achievement% 46 Wizard Run 0 Options --------- Layout 1 ASCII 0 Keyboard 0 Movement Numpad Keybinds 0 Fullscreen 1 Font 24/Smallcaps Map View 50x35 Zoom Use 0% Tactical HUD 1 Map Filters NONE Filters NONE Steam 1 RUN: f6bfcdfb-11a2-4a86-bfe4-cba6183272a4